bitfinex-derivatives/quotes_BTCF0:USTF0_20250930
["timestamp","ask_amount","ask_price","bid_price","bid_amount"]
[1759261261854,3.8561235,114120.0,114110.0,0.1006133]
[1759261262752,3.8561235,114120.0,114110.0,0.013]
[1759261263848,3.8561235,114120.0,114110.0,0.1006155]
[1759261264252,3.8561235,114120.0,114110.0,0.013]
[1759261264648,3.8561235,114120.0,114100.0,2.09118662]
[1759261264649,0.0876155,114110.0,114100.0,2.09118662]
[1759261264857,0.8969623,114110.0,114100.0,2.17880972]
[1759261265054,0.4851671,114110.0,114100.0,2.17880972]
[1759261265458,3.0683671,114110.0,114100.0,2.17880972]
[1759261265852,3.0683671,114110.0,114100.0,2.1007931]
[1759261266356,3.0683671,114110.0,114100.0,2.20968771]
[1759261266654,0.8459671,114110.0,114100.0,2.20968771]
[1759261266851,3.4291271,114110.0,114100.0,2.20968771]
[1759261267250,3.4291271,114110.0,114100.0,2.2184583]
[1759261267954,0.8459671,114110.0,114100.0,2.2184583]
[1759261268155,3.4290871,114110.0,114100.0,2.2184583]
[1759261268652,0.8459671,114110.0,114100.0,2.2184583]
[1759261268956,3.4290871,114110.0,114100.0,2.2184583]
[1759261270159,0.8459671,114110.0,114100.0,2.2184583]
[1759261270359,3.4290471,114110.0,114100.0,2.2184583]
[1759261271363,0.8459671,114110.0,114100.0,2.2184583]
[1759261271659,3.4290071,114110.0,114100.0,2.2184583]
[1759261272060,0.8459671,114110.0,114100.0,2.2184583]
[1759261272257,0.3608,114110.0,114100.0,2.2184583]
[1759261272459,0.4492132,114120.0,114110.0,0.1223354]
[1759261272654,0.0876077,114120.0,114110.0,0.20062532]
[1759261272859,0.0880077,114120.0,114110.0,1.04302521]
[1759261273060,2.6374009,114130.0,114120.0,0.1223277]
[1759261273261,1.7772,114130.0,114120.0,1.02419029]
[1759261273561,2.9955952,114130.0,114120.0,0.64301751]
[1759261273757,2.9947952,114130.0,114120.0,0.64301751]
[1759261274060,2.9951952,114130.0,114120.0,0.64301751]
[1759261274258,2.5834,114130.0,114120.0,0.64301751]
[1759261274851,0.0004,114130.0,114120.0,1.00381751]
[1759261275055,0.3608,114140.0,114130.0,0.12232]
[1759261275258,2.6373447,114150.0,114140.0,0.1223123]
[1759261275557,3.4431047,114150.0,114140.0,0.20045923]
[1759261275758,3.4435047,114150.0,114140.0,0.1223123]
[1759261276564,3.0315895,114150.0,114140.0,0.20045923]
[1759261276861,0.8605847,114150.0,114140.0,0.20045923]
[1759261277057,0.7729952,114150.0,114140.0,0.20045923]
[1759261277263,0.0004,114150.0,114140.0,1.42404963]
[1759261277562,2.13868,114160.0,114150.0,0.1231947]
[1759261277563,0.3608,114160.0,114150.0,0.1231947]
[1759261277762,1.16728,114160.0,114150.0,0.61296412]
[1759261277956,1.16728,114160.0,114150.0,1.01296412]
[1759261278261,0.3616,114170.0,114160.0,0.123187]
[1759261278562,1.5782752,114170.0,114160.0,0.68444848]
[1759261278762,1.5786752,114170.0,114160.0,0.68444848]
[1759261278960,0.0004,114170.0,114160.0,1.85704368]
[1759261279262,2.6371541,114190.0,114180.0,0.03561]
[1759261279458,3.4427941,114190.0,114180.0,0.50961231]
[1759261279660,3.4427941,114190.0,114180.0,0.09781711]
[1759261279858,3.4431941,114190.0,114180.0,0.50961231]
[1759261280059,3.3556352,114190.0,114180.0,0.18537881]
[1759261280259,3.3556352,114190.0,114180.0,0.5349669]
[1759261280461,3.031394,114190.0,114180.0,0.5349669]
[1759261280661,3.4431892,114190.0,114180.0,0.5349669]
[1759261281164,3.3556352,114190.0,114180.0,0.5436389]
[1759261281364,0.0004,114190.0,114180.0,1.3162341]
[1759261281557,1.2173152,114190.0,114180.0,0.8168772]
[1759261281761,1.2177152,114190.0,114180.0,0.60584601]
[1759261282467,1.3052692,114190.0,114180.0,0.1318437]
[1759261282869,1.3052692,114190.0,114180.0,0.5436389]
[1759261283457,1.3052692,114190.0,114180.0,0.1318437]
[1759261283760,0.893474,114190.0,114180.0,0.5436389]
[1759261283959,1.3052692,114190.0,114180.0,0.5436389]
[1759261284566,1.3052692,114190.0,114180.0,0.1318437]
[1759261284860,1.3052692,114190.0,114180.0,0.044282]
[1759261285062,1.3052692,114190.0,114180.0,0.03561]
[1759261285461,1.3052692,114190.0,114180.0,0.04463358]
[1759261286169,1.3052692,114190.0,114180.0,0.13219528]
[1759261287560,0.4997492,114190.0,114180.0,0.54399048]
[1759261287760,1.2174352,114190.0,114180.0,0.54399048]
[1759261288169,1.3049892,114190.0,114180.0,0.54399048]
[1759261288767,0.4997492,114190.0,114180.0,0.54399048]
[1759261288967,1.3049492,114190.0,114180.0,0.54399048]
[1759261289162,0.4121952,114190.0,114180.0,0.54399048]
[1759261289465,0.0004,114190.0,114180.0,1.31658568]
[1759261289665,0.91398609,114200.0,114190.0,0.123164]
[1759261289859,1.71994609,114200.0,114190.0,0.5349592]
[1759261292772,1.71994609,114200.0,114190.0,0.123164]
[1759261293069,2.13174129,114200.0,114190.0,0.123164]
[1759261294461,2.13174129,114200.0,114190.0,0.03561]
[1759261295271,2.13174129,114200.0,114190.0,0.123164]
[1759261295874,2.13174129,114200.0,114190.0,0.03561]
[1759261297174,2.13174129,114200.0,114190.0,0.123164]
[1759261297375,2.13174129,114200.0,114190.0,0.03561]
[1759261297573,2.13174129,114200.0,114190.0,0.123164]
[1759261297983,1.32658129,114200.0,114190.0,0.123164]
[1759261298179,3.90762129,114200.0,114190.0,0.123164]
[1759261301289,1.32658129,114200.0,114190.0,0.123164]
[1759261301490,2.13146129,114200.0,114190.0,0.123164]
[1759261302887,2.13146129,114200.0,114190.0,0.03561]
[1759261303385,2.13142129,114200.0,114190.0,0.123164]
[1759261304586,0.0875617,114180.0,114170.0,0.43591711]
[1759261304890,1.7159921,114180.0,114170.0,0.02170169]
[1759261305085,0.9111521,114180.0,114170.0,0.04440169]
[1759261305284,1.7159921,114180.0,114170.0,0.18538641]
[1759261305489,1.7159921,114180.0,114170.0,0.5349745]
[1759261305687,1.7159921,114180.0,114170.0,0.1231793]
[1759261305886,2.0767921,114180.0,114170.0,0.03561]
[1759261306092,2.0767921,114180.0,114170.0,0.1231793]
[1759261306289,2.0767921,114180.0,114170.0,0.18538641]
[1759261307279,2.0767921,114180.0,114170.0,0.09781711]
[1759261307483,2.0767921,114180.0,114170.0,0.1065047]
[1759261308492,0.3608,114190.0,114180.0,0.1222717]
[1759261308789,1.83063949,114200.0,114190.0,0.122264]
[1759261308987,2.72298579,114200.0,114190.0,1.35706631]
[1759261309294,0.14178579,114200.0,114190.0,1.35706631]
[1759261309491,0.94658579,114200.0,114190.0,1.35706631]
[1759261310988,0.14178579,114200.0,114190.0,1.35706631]
[1759261311186,0.05423949,114200.0,114190.0,1.2948592]
[1759261311390,0.84476756,114200.0,114190.0,1.78441329]
[1759261311588,0.84436756,114200.0,114190.0,1.78441329]
[1759261311789,0.03960756,114200.0,114190.0,1.37261809]
[1759261312096,0.84476756,114200.0,114190.0,1.37261809]
[1759261312391,0.84476756,114200.0,114190.0,1.37180728]
[1759261312792,0.84476756,114200.0,114190.0,1.29404839]
[1759261312990,0.84476756,114200.0,114190.0,1.402943]
[1759261313292,0.04000756,114200.0,114190.0,1.29404839]
[1759261313481,0.84472756,114200.0,114190.0,1.29404839]
[1759261313794,0.84472756,114200.0,114190.0,1.37199647]
[1759261314193,0.84468756,114200.0,114190.0,1.37199647]
[1759261314698,2.2406017,114240.0,114230.0,0.1222333]
[1759261314882,0.87570609,114240.0,114230.0,0.03471]
[1759261315082,3.37030439,114240.0,114230.0,0.1222333]
[1759261315394,2.6844357,114240.0,114230.0,0.18455158]
[1759261315694,2.6844357,114240.0,114230.0,0.1222333]
[1759261316092,2.6848357,114240.0,114230.0,0.1222333]
[1759261316395,2.6848357,114240.0,114230.0,0.03471]
[1759261316697,3.09582009,114240.0,114230.0,0.03471]
[1759261317287,3.45662009,114240.0,114230.0,0.01274]
[1759261317890,3.0456357,114240.0,114230.0,0.03471]
[1759261318091,3.45662009,114240.0,114230.0,0.03471]
[1759261319398,3.0456357,114240.0,114230.0,0.03471]
[1759261319698,3.45662009,114240.0,114230.0,0.03471]
[1759261320099,1.68058009,114240.0,114230.0,0.03471]
[1759261320800,1.68058009,114240.0,114230.0,0.01274]
[1759261320995,1.68058009,114240.0,114230.0,0.03471]
[1759261321388,0.4651157,114240.0,114230.0,0.60362284]
[1759261321590,1.2691557,114240.0,114230.0,0.53321769]
[1759261321799,1.2695557,114240.0,114230.0,0.53321769]
[1759261322198,1.2695557,114240.0,114230.0,0.1222333]
[1759261322709,1.2695557,114240.0,114230.0,0.44569439]
[1759261323004,1.2695557,114240.0,114230.0,0.53321769]
[1759261323303,1.2695557,114240.0,114230.0,0.1222333]
[1759261326196,1.2695557,114240.0,114230.0,0.6033708]
[1759261326796,1.2695557,114240.0,114230.0,0.62132976]
[1759261326997,1.2695557,114240.0,114230.0,0.63014557]
[1759261327604,0.1043157,114240.0,114230.0,0.63014557]
[1759261328004,0.9085957,114240.0,114230.0,0.63014557]
[1759261331306,0.9085957,114240.0,114230.0,0.99094557]
[1759261333307,0.9085957,114240.0,114230.0,0.57996118]
[1759261333515,0.9085957,114240.0,114230.0,0.99094557]
[1759261334710,0.9085957,114240.0,114230.0,0.90342227]
[1759261334912,1.31958009,114240.0,114230.0,0.90342227]
[1759261335110,1.31958009,114240.0,114230.0,0.49243788]
[1759261335311,1.31958009,114240.0,114230.0,0.19395616]
[1759261335709,1.68038009,114240.0,114230.0,0.19395616]
[1759261336212,1.68038009,114240.0,114230.0,0.13163788]
[1759261336615,1.68038009,114240.0,114230.0,0.11367892]
[1759261337214,0.87610009,114240.0,114230.0,0.20120222]
[1759261337414,1.68022009,114240.0,114230.0,0.20120222]
[1759261338207,1.68022009,114240.0,114230.0,0.2635205]
[1759261338617,0.87610009,114240.0,114230.0,0.2635205]
[1759261338914,1.68022009,114240.0,114230.0,0.2635205]
[1759261339123,0.51530009,114240.0,114230.0,0.5367972]
[1759261339313,0.51530009,114240.0,114230.0,0.6243205]
[1759261339314,1.31938009,114240.0,114230.0,0.6243205]
[1759261339514,1.31938009,114240.0,114230.0,0.5367972]
[1759261340015,1.31938009,114240.0,114230.0,0.6243205]
[1759261341220,1.30515334,114240.0,114230.0,0.63990008]
[1759261341405,0.89416895,114240.0,114230.0,0.63990008]
[1759261341714,1.30515334,114240.0,114230.0,0.63990008]
[1759261342416,0.50107334,114240.0,114230.0,0.55237678]
[1759261342612,1.30511334,114240.0,114230.0,0.55237678]
[1759261342810,1.30511334,114240.0,114230.0,0.63990008]
[1759261343214,1.30511334,114240.0,114230.0,0.20120222]
[1759261343416,1.30511334,114240.0,114230.0,0.27910008]
[1759261343718,1.30511334,114240.0,114230.0,0.29660196]
[1759261343918,0.50107334,114240.0,114230.0,0.2187041]
[1759261344217,1.30507334,114240.0,114230.0,0.2187041]
[1759261344418,1.66587334,114240.0,114230.0,0.20907866]
[1759261344619,1.66807334,114240.0,114230.0,0.20907866]
[1759261344917,1.66807334,114240.0,114230.0,0.29660196]
[1759261345319,1.66807334,114240.0,114230.0,0.27910008]
[1759261345819,1.66807334,114240.0,114230.0,0.16960678]
[1759261346412,1.66807334,114240.0,114230.0,0.16079097]
[1759261346620,2.47905773,114240.0,114230.0,0.16079097]
[1759261346916,2.06807334,114240.0,114230.0,0.16079097]
[1759261347312,2.47905773,114240.0,114230.0,0.16079097]
[1759261347617,2.47905773,114240.0,114230.0,0.07015311]
[1759261347819,0.0875233,114230.0,114220.0,0.17816856]
[1759261348021,1.30246769,114230.0,114220.0,0.20017856]
[1759261348317,1.30242769,114230.0,114220.0,0.20017856]
[1759261348915,0.49850769,114230.0,114220.0,0.20017856]
[1759261349114,1.30242769,114230.0,114220.0,0.20017856]
[1759261349314,0.8914433,114230.0,114220.0,0.20017856]
[1759261349519,1.30242769,114230.0,114220.0,0.20017856]
[1759261349912,1.30242769,114230.0,114220.0,0.27043585]
[1759261350417,0.49850769,114230.0,114220.0,0.27043585]
[1759261350614,1.30238769,114230.0,114220.0,0.27043585]
[1759261351114,1.30238769,114230.0,114220.0,0.27931429]
[1759261351717,2.49393635,114240.0,114230.0,0.03528]
[1759261351917,3.29781635,114240.0,114230.0,0.1228033]
[1759261352512,1.52257635,114240.0,114230.0,0.1228033]
[1759261352925,0.71869635,114240.0,114230.0,0.1228033]
[1759261353221,1.52257635,114240.0,114230.0,0.1228033]
[1759261353622,1.93356074,114240.0,114230.0,0.1228033]
[1759261354125,1.93352074,114240.0,114230.0,0.1228033]
[1759261355117,1.52253635,114240.0,114230.0,0.1228033]
[1759261355317,0.35788895,114240.0,114230.0,0.53378769]
[1759261355526,1.14536691,114240.0,114230.0,0.55141772]
[1759261355724,1.14536691,114240.0,114230.0,0.62945898]
[1759261356323,0.34192691,114240.0,114230.0,0.62945898]
[1759261356525,0.8917557,114240.0,114230.0,0.62945898]
[1759261357323,0.8917157,114240.0,114230.0,0.62945898]
[1759261357824,0.8917157,114240.0,114230.0,0.21847459]
[1759261358732,0.8917157,114240.0,114230.0,0.62945898]
[1759261359027,0.8917157,114240.0,114230.0,0.21847459]
[1759261359824,1.30270009,114240.0,114230.0,0.21847459]
[1759261360728,1.30270009,114240.0,114230.0,0.20084456]
[1759261361129,1.21518439,114240.0,114230.0,0.20084456]
[1759261362729,1.30270009,114240.0,114230.0,0.20084456]
[1759261363321,0.41138439,114240.0,114230.0,0.20084456]
[1759261363526,0.80412,114240.0,114230.0,0.20084456]
[1759261363832,0.8916357,114240.0,114230.0,0.20084456]
[1759261364224,1.30262009,114240.0,114230.0,0.20084456]
[1759261364730,0.8916357,114240.0,114230.0,0.20084456]
[1759261364920,1.30262009,114240.0,114230.0,0.20084456]
[1759261365124,1.30262009,114240.0,114230.0,0.21823724]
[1759261365326,1.21510439,114240.0,114230.0,0.21823724]
[1759261365630,0.78989296,114240.0,114230.0,0.21823724]
[1759261365933,1.20087735,114240.0,114230.0,0.21823724]
[1759261366225,1.21466439,114240.0,114230.0,0.21823724]
[1759261366932,0.41098439,114240.0,114230.0,0.21823724]
[1759261367133,1.21466439,114240.0,114230.0,0.21823724]
[1759261367434,1.21466439,114240.0,114230.0,0.14019598]
[1759261367634,0.80368,114240.0,114230.0,0.14019598]
[1759261368334,2.63533789,114250.0,114240.0,0.1232257]
[1759261368536,3.43897789,114250.0,114240.0,0.20127573]
[1759261368730,3.0279935,114250.0,114240.0,0.20127573]
[1759261368931,3.43897789,114250.0,114240.0,0.20127573]
[1759261369433,3.43897789,114250.0,114240.0,0.11376003]
[1759261369739,0.86009789,114250.0,114240.0,0.11376003]
[1759261369930,3.43893789,114250.0,114240.0,0.20127573]
[1759261371844,0.86009789,114250.0,114240.0,0.20127573]
[1759261372135,2.47755461,114260.0,114250.0,0.123218]
[1759261372326,3.43888779,114260.0,114250.0,0.20126803]
[1759261372527,3.43808779,114260.0,114250.0,0.20126803]
[1759261372834,3.43848779,114260.0,114250.0,0.20126803]
[1759261373432,3.43848779,114260.0,114250.0,0.123218]
[1759261374234,3.8489089,114260.0,114250.0,0.123218]
[1759261374539,3.8489089,114260.0,114250.0,0.18561924]
[1759261375036,3.8489089,114260.0,114250.0,0.09811124]
[1759261375337,3.8489089,114260.0,114250.0,0.18561924]
[1759261377241,3.8489089,114260.0,114250.0,0.123218]
[1759261377538,3.8489089,114260.0,114250.0,0.18560398]
[1759261377730,3.8489089,114260.0,114250.0,0.123218]
[1759261377928,3.8489089,114260.0,114250.0,0.18560432]
[1759261378130,3.8489089,114260.0,114250.0,0.123218]
[1759261378638,3.8489089,114260.0,114250.0,0.18560243]
[1759261381132,3.8489089,114260.0,114250.0,0.07612443]
[1759261382339,3.8485489,114260.0,114250.0,0.07612443]
[1759261383338,3.8485489,114260.0,114250.0,0.16363243]
[1759261384848,3.8485489,114260.0,114250.0,0.07612443]
[1759261385143,3.8484689,114260.0,114250.0,0.07612443]
[1759261385445,1.2701089,114260.0,114250.0,0.07612443]
[1759261385939,3.8484289,114260.0,114250.0,0.07612443]
[1759261386646,1.2701089,114260.0,114250.0,0.07612443]
[1759261386845,3.8484289,114260.0,114250.0,0.07612443]
[1759261387145,3.8484289,114260.0,114250.0,0.01374]
[1759261387447,3.8484289,114260.0,114250.0,0.07613624]
[1759261388337,3.8483889,114260.0,114250.0,0.01374]
[1759261391748,3.8483889,114260.0,114250.0,0.03571]
[1759261392344,3.8483889,114260.0,114250.0,0.01374]
[1759261393045,1.2701089,114260.0,114250.0,0.01374]
[1759261393246,3.8482289,114260.0,114250.0,0.01374]
[1759261394742,0.4487034,114260.0,114250.0,0.03571]
[1759261394945,3.8482289,114260.0,114250.0,0.03571]
[1759261395246,3.8339629,114260.0,114250.0,0.11376003]
[1759261396045,1.2558829,114260.0,114250.0,0.11376003]
[1759261396250,3.8339229,114260.0,114250.0,0.11376003]
[1759261396440,1.2558829,114260.0,114250.0,0.11376003]
[1759261396746,3.8339229,114260.0,114250.0,0.11376003]
[1759261396948,1.2558829,114260.0,114250.0,0.11376003]
[1759261397448,3.8339229,114260.0,114250.0,0.11376003]
[1759261399653,3.8339229,114260.0,114250.0,0.09179003]
[1759261400152,3.8339229,114260.0,114250.0,0.11316003]
[1759261400946,3.8339229,114260.0,114250.0,0.09179003]
[1759261401450,3.8339229,114260.0,114250.0,0.11316003]
[1759261402645,3.8338029,114260.0,114250.0,0.11316003]
[1759261403753,3.8338029,114260.0,114250.0,0.20066803]
[1759261405559,0.4344774,114260.0,114250.0,0.20066803]
[1759261405761,1.2558829,114260.0,114250.0,0.20066803]
[1759261405952,3.8337629,114260.0,114250.0,0.20066803]
[1759261406660,0.4344774,114260.0,114250.0,0.20066803]
[1759261406853,0.34697455,114260.0,114250.0,0.53332075]
[1759261407060,0.4615967,114270.0,114260.0,0.1224303]
[1759261407061,2.14834,114270.0,114260.0,0.1224303]
[1759261407357,1.78834,114270.0,114260.0,1.3046358]
[1759261407567,2.59034,114270.0,114260.0,1.3046358]
[1759261407761,2.59074,114270.0,114260.0,1.00282766]
[1759261408061,3.00104275,114270.0,114260.0,1.00282766]
[1759261408360,3.00144275,114270.0,114260.0,0.59212491]
[1759261408556,3.00144275,114270.0,114260.0,0.89393305]
[1759261408955,2.59074,114270.0,114260.0,0.97184798]
[1759261409158,3.00144275,114270.0,114260.0,0.97184798]
[1759261409757,0.81566,114270.0,114260.0,0.89393305]
[1759261410059,1.22636275,114270.0,114260.0,0.4832303]
[1759261410258,1.22636275,114270.0,114260.0,0.95622566]
[1759261410462,0.81566,114270.0,114260.0,0.95622566]
[1759261410761,0.42360275,114270.0,114260.0,0.95622566]
[1759261410961,1.22632275,114270.0,114260.0,0.95622566]
[1759261411161,1.22592275,114270.0,114260.0,0.95622566]
[1759261411362,0.0129,114270.0,114260.0,1.3046358]
[1759261411567,0.5259,114270.0,114260.0,1.3046358]
[1759261411753,0.5259,114270.0,114260.0,0.96114523]
[1759261411950,0.5259,114270.0,114260.0,0.8832303]
[1759261412159,0.5259,114270.0,114260.0,1.88238446]
[1759261412160,0.5255,114270.0,114260.0,1.88238446]
[1759261412358,0.93620275,114270.0,114260.0,1.88238446]
[1759261412559,0.93660275,114270.0,114260.0,1.06097896]
[1759261412757,0.93660275,114270.0,114260.0,1.47168171]
[1759261413356,0.93660275,114270.0,114260.0,1.3627871]
[1759261413658,0.5259,114270.0,114260.0,0.95208435]
[1759261413966,0.81762,114270.0,114260.0,1.77348985]
[1759261414360,0.0129,114270.0,114260.0,1.77348985]
[1759261414557,1.77484,114290.0,114280.0,0.087485]
[1759261414756,2.99242275,114290.0,114280.0,0.59533457]
[1759261415059,2.58172,114290.0,114280.0,0.53311775]
[1759261415267,2.99242275,114290.0,114280.0,0.59530689]
[1759261415561,2.99282275,114290.0,114280.0,0.18460414]
[1759261415865,2.99242275,114290.0,114280.0,0.60411848]
[1759261416065,2.99282275,114290.0,114280.0,0.60411848]
[1759261416269,0.0004,114290.0,114280.0,1.37562123]
[1759261416561,0.53348,114290.0,114280.0,1.39120311]
[1759261416765,0.5103506,114290.0,114280.0,1.39120311]
[1759261417153,0.5103506,114290.0,114280.0,0.56979761]
[1759261417358,0.5103506,114290.0,114280.0,1.39120311]
[1759261419059,0.5103506,114290.0,114280.0,0.49202659]
[1759261419460,0.5103506,114290.0,114280.0,1.31343209]
[1759261420362,0.5103506,114290.0,114280.0,1.3755177]
[1759261421067,0.92105335,114290.0,114280.0,1.3755177]
[1759261421262,0.92105335,114290.0,114280.0,0.5541122]
[1759261421470,1.00853075,114290.0,114280.0,0.96481495]
[1759261423369,0.5103506,114290.0,114280.0,1.3755177]
[1759261423763,0.92105335,114290.0,114280.0,0.96481495]
[1759261423964,1.00853075,114290.0,114280.0,0.60401495]
[1759261424565,1.00853075,114290.0,114280.0,0.1933122]
[1759261424765,1.00853075,114290.0,114280.0,0.60401495]
[1759261425470,1.00853075,114290.0,114280.0,0.1933122]
[1759261425659,1.00853075,114290.0,114280.0,0.60401495]
[1759261425865,1.00853075,114290.0,114280.0,0.60399315]
[1759261426258,1.00853075,114290.0,114280.0,0.1932904]
[1759261426868,1.00853075,114290.0,114280.0,0.60399315]
[1759261428073,0.0878774,114290.0,114280.0,0.60399315]
[1759261428273,1.31382015,114290.0,114280.0,0.1932904]
[1759261428471,1.31382015,114290.0,114280.0,0.60399315]
[1759261428673,1.7245229,114290.0,114280.0,0.0844354]
[1759261428872,0.49858015,114290.0,114280.0,0.0844354]
[1759261429075,1.31370015,114290.0,114280.0,0.1070854]
[1759261430071,0.49858015,114290.0,114280.0,0.1070854]
[1759261430271,1.31346015,114290.0,114280.0,0.1070854]
[1759261430470,1.31346015,114290.0,114280.0,0.51778815]
[1759261430670,1.31346015,114290.0,114280.0,0.1070854]
[1759261431576,0.7241629,114290.0,114280.0,0.1070854]
[1759261431775,0.8116403,114290.0,114280.0,0.1945704]
[1759261431965,1.31274015,114290.0,114280.0,0.1945704]
[1759261432165,1.31274015,114290.0,114280.0,0.1070854]
[1759261432376,1.31274015,114290.0,114280.0,0.51778815]
[1759261432876,0.49818015,114290.0,114280.0,0.60527315]
[1759261433076,1.31254015,114290.0,114280.0,0.60527315]
[1759261434274,0.9018374,114290.0,114280.0,0.60501301]
[1759261434468,1.31228001,114290.0,114280.0,0.51752801]
[1759261435077,0.9018374,114290.0,114280.0,0.51752801]
[1759261435479,0.9021974,114290.0,114280.0,0.1070854]
[1759261435670,0.9020774,114290.0,114280.0,0.51752801]
[1759261436370,0.9020774,114290.0,114280.0,0.4554642]
[1759261436571,0.9031574,114290.0,114280.0,0.04502159]
[1759261437277,1.31360001,114290.0,114280.0,0.04502159]
[1759261440870,0.49792001,114290.0,114280.0,0.12279261]
[1759261441074,1.31264001,114290.0,114280.0,0.12279261]
[1759261442585,0.9021974,114290.0,114280.0,0.12279261]
[1759261442881,1.31264001,114290.0,114280.0,0.12279261]
[1759261443682,0.49792001,114290.0,114280.0,0.12279261]
[1759261443875,1.31208001,114290.0,114280.0,0.12279261]
[1759261444071,0.49792001,114290.0,114280.0,0.12279261]
[1759261444276,1.31196001,114290.0,114280.0,0.12279261]
[1759261444476,0.49792001,114290.0,114280.0,0.13250669]
[1759261444882,1.31184001,114290.0,114280.0,0.13250669]
[1759261445283,1.31176001,114290.0,114280.0,0.13250669]
[1759261445778,0.49792001,114290.0,114280.0,0.21046007]
[1759261446083,1.31168001,114290.0,114280.0,0.21046007]
[1759261446782,1.31164001,114290.0,114280.0,0.21046007]
[1759261446983,0.9011974,114290.0,114280.0,0.62090268]
[1759261449280,0.9005574,114290.0,114280.0,0.62090268]
[1759261450179,0.9005574,114290.0,114280.0,0.21046007]
[1759261450480,0.9009974,114290.0,114280.0,0.21046007]
[1759261450681,0.0874774,114290.0,114280.0,0.21046007]
[1759261450886,0.9010774,114290.0,114280.0,0.21046007]
[1759261451087,0.0874774,114290.0,114280.0,0.21046007]
[1759261451287,1.31152001,114290.0,114280.0,0.21046007]
[1759261451699,0.49792001,114290.0,114280.0,0.21046007]
[1759261451895,1.31144001,114290.0,114280.0,0.21046007]
[1759261452298,0.49792001,114290.0,114280.0,0.21046007]
[1759261452498,1.31128001,114290.0,114280.0,0.21046007]
[1759261452697,0.49792001,114290.0,114280.0,0.21046007]
[1759261452899,1.31116001,114290.0,114280.0,0.21046007]
[1759261453196,0.9007174,114290.0,114280.0,0.21046007]
[1759261453994,0.0874774,114290.0,114280.0,0.21046007]
[1759261454297,0.9006374,114290.0,114280.0,0.62090268]
[1759261454595,0.0874774,114290.0,114280.0,0.62090268]
[1759261454796,0.9003974,114290.0,114280.0,0.62090268]
[1759261455488,2.90330105,114300.0,114290.0,0.1231274]
[1759261455694,0.76806105,114300.0,114290.0,0.03565]
[1759261455894,0.75761844,114300.0,114290.0,0.89437001]
[1759261456090,3.75518105,114300.0,114290.0,0.61152339]
[1759261456499,3.75518105,114300.0,114290.0,0.20108078]
[1759261457501,4.11598105,114300.0,114290.0,0.20108078]
[1759261457703,3.75518105,114300.0,114290.0,0.1231274]
[1759261457904,3.75518105,114300.0,114290.0,0.11360338]
[1759261458095,3.75518105,114300.0,114290.0,0.1231274]
[1759261458595,4.11598105,114300.0,114290.0,0.20108078]
[1759261459300,4.11598105,114300.0,114290.0,0.1231274]
[1759261459903,4.11598105,114300.0,114290.0,0.03565]
[1759261460102,4.11598105,114300.0,114290.0,0.013]
[1759261460603,4.11598105,114300.0,114290.0,0.1229074]
[1759261460799,4.11598105,114300.0,114290.0,0.1004774]
[1759261460999,3.70553844,114300.0,114290.0,0.1229074]
[1759261461302,4.11598105,114300.0,114290.0,0.1004774]
[1759261461498,4.11598105,114300.0,114290.0,0.1229074]
[1759261462596,1.52886105,114300.0,114290.0,0.1229074]
[1759261462802,4.11498105,114300.0,114290.0,0.1229074]
[1759261463604,4.11498105,114300.0,114290.0,0.20086078]
[1759261464406,4.11498105,114300.0,114290.0,0.1229074]
[1759261464597,4.11498105,114300.0,114290.0,0.20085615]
[1759261465508,4.11498105,114300.0,114290.0,0.11337875]
[1759261465698,4.61290096,114300.0,114280.0,0.10032034]
[1759261466010,0.41044261,114290.0,114280.0,0.12275034]
[1759261466696,0.49792001,114290.0,114280.0,0.12275034]
[1759261466900,0.49792001,114290.0,114280.0,0.18780544]
[1759261467107,0.49792001,114290.0,114280.0,0.21023544]
[1759261467408,0.0874774,114290.0,114280.0,0.21023544]
[1759261467606,0.49792001,114290.0,114280.0,0.21023544]
[1759261468699,1.30900001,114290.0,114280.0,0.21023544]
[1759261471112,0.49792001,114290.0,114280.0,0.21023544]
[1759261471316,1.30844001,114290.0,114280.0,0.21023544]
[1759261472311,1.30844001,114290.0,114280.0,0.12275034]
[1759261472517,0.49792001,114290.0,114280.0,0.21023124]
[1759261472917,3.08252001,114290.0,114280.0,0.13228249]
[1759261473518,0.49792001,114290.0,114280.0,0.13228249]
[1759261473716,0.49792001,114290.0,114280.0,0.18780436]
[1759261473915,3.08236001,114290.0,114280.0,0.21023436]
[1759261474619,3.08236001,114290.0,114280.0,0.18780436]
[1759261475016,0.49792001,114290.0,114280.0,0.18780436]
[1759261475220,3.08212001,114290.0,114280.0,0.18780436]
[1759261475714,3.08212001,114290.0,114280.0,0.10032346]
[1759261476017,3.08212001,114290.0,114280.0,0.2187479]
[1759261476918,3.08200001,114290.0,114280.0,0.2187479]
[1759261477920,0.49792001,114290.0,114280.0,0.2411779]
[1759261478220,3.08200001,114290.0,114280.0,0.2411779]
[1759261478818,3.08160001,114290.0,114280.0,0.2411779]
[1759261479522,0.0874774,114290.0,114280.0,0.2411779]
[1759261479715,3.08160001,114290.0,114280.0,0.2411779]
[1759261480622,3.08160001,114290.0,114280.0,0.13228329]
[1759261480817,3.08160001,114290.0,114280.0,0.21022082]
[1759261481820,3.08148001,114290.0,114280.0,0.21022082]
[1759261483720,3.08084001,114290.0,114280.0,0.21022082]
[1759261483917,0.49792001,114290.0,114280.0,0.21022082]
[1759261484123,3.08076001,114290.0,114280.0,0.21022082]
[1759261485625,3.08048001,114290.0,114280.0,0.21022082]
[1759261486424,3.08052001,114290.0,114280.0,0.21022082]
[1759261489731,3.08052001,114290.0,114280.0,0.18779082]
[1759261490828,0.49792001,114290.0,114280.0,0.18779082]
[1759261491028,3.07964001,114290.0,114280.0,0.18779082]
[1759261491223,0.49792001,114290.0,114280.0,0.18779082]
[1759261491527,3.07960001,114290.0,114280.0,0.19413119]
[1759261492829,0.49792001,114290.0,114280.0,0.19413119]
[1759261493029,3.07948001,114290.0,114280.0,0.19413119]
[1759261493224,0.49792001,114290.0,114280.0,0.19413119]
[1759261493524,3.07936001,114290.0,114280.0,0.19413119]
[1759261493728,0.49792001,114290.0,114280.0,0.19413119]
[1759261493928,3.07924001,114290.0,114280.0,0.19413119]
[1759261494726,3.07924001,114290.0,114280.0,0.17221119]
[1759261495329,3.07924001,114290.0,114280.0,0.19413119]
[1759261495529,3.07924001,114290.0,114280.0,0.17221069]
[1759261496025,3.07924001,114290.0,114280.0,0.08472949]
[1759261496334,0.0874811,114280.0,114270.0,0.37436]
[1759261496527,0.90873126,114280.0,114270.0,0.45235824]
[1759261496826,1.26953126,114280.0,114270.0,0.09155824]
[1759261497021,0.0874967,114260.0,114250.0,0.10889461]
[1759261497222,2.07618686,114260.0,114250.0,0.10889461]
[1759261497528,2.07618686,114260.0,114250.0,0.0623566]
[1759261498225,1.26954686,114260.0,114250.0,0.0623566]
[1759261498624,3.85050686,114260.0,114250.0,0.0623566]
[1759261498826,3.85050686,114260.0,114250.0,0.0757266]
[1759261499423,4.25050686,114260.0,114250.0,0.0623566]
[1759261499829,1.66954686,114260.0,114250.0,0.0623566]